bitfinex-derivatives/quotes_SOLF0:USTF0_20250709
["timestamp","ask_amount","ask_price","bid_price","bid_amount"]
[1752090680613,10.43484189,157.08,156.96,10.43484189]
[1752090680818,10.43484189,157.08,156.86,549.92]
[1752090681017,549.92,157.1,156.86,549.92]
[1752090681216,10.43484189,157.05,156.93,10.43484189]
[1752090681518,2.3148,157.04,156.93,10.43484189]
[1752090681715,6.3678,157.0,156.93,10.43484189]
[1752090681920,2.3148,157.04,156.93,10.43484189]
[1752090682222,2.3148,157.04,156.95,10.43484189]
[1752090682423,2.3148,157.04,156.98,10.43484189]
[1752090682919,2.3148,157.04,156.9,3.69535703]
[1752090682920,549.92,157.1,157.01,10.43484189]
[1752090683719,549.92,157.1,156.9,3.69535703]
[1752090683720,549.92,157.1,156.97,10.43484189]
[1752090683917,549.92,157.1,157.01,10.43484189]
[1752090684315,549.92,157.1,156.9,3.69535703]
[1752090684513,254.98,157.09,156.98,10.43484189]
[1752090685321,254.98,157.09,156.9,3.69535703]
[1752090685722,254.98,157.09,156.98,10.43484189]
[1752090685925,0.04658679,157.01,156.98,10.47905573]
[1752090686222,549.92,157.1,156.98,10.43484189]
[1752090686521,549.92,157.1,157.03,10.43484189]
[1752090687027,6.3646,157.08,157.02,10.43484189]
[1752090688114,549.92,157.1,157.02,10.43484189]
[1752090688825,549.92,157.1,157.05,10.43484189]
[1752090689526,8.6782,157.11,157.05,10.43484189]
[1752090689723,6.364,157.1,156.98,62.0]
[1752090690030,6.364,157.1,157.05,10.43484189]
[1752090690229,6.364,157.1,157.05,16.80054189]
[1752090690431,2.3148,157.11,156.98,62.0]
[1752090690629,2.3148,157.11,157.06,6.3653]
[1752090690933,2.3148,157.11,157.05,10.43484189]
[1752090691533,549.94,157.18,157.08,10.43484189]
[1752090691720,549.94,157.18,156.98,62.0]
[1752090691721,549.94,157.18,157.11,10.43484189]
[1752090691926,6.3614,157.16,157.11,10.43484189]
[1752090692420,549.94,157.18,157.11,10.43484189]
[1752090692627,6.3614,157.16,157.11,10.43484189]
[1752090693026,549.94,157.18,157.11,10.43484189]
[1752090693226,6.3614,157.16,157.11,10.43484189]
[1752090693422,549.94,157.18,157.11,16.79804189]
[1752090693629,549.94,157.18,156.97,29.54484189]
[1752090693630,549.94,157.18,157.07,10.43484189]
[1752090694437,10.43484189,157.16,157.07,10.43484189]
[1752090694737,2.1989,157.15,157.07,10.43484189]
[1752090694933,6.3641,157.1,157.05,16.80054189]
[1752090695236,252.06,157.13,157.05,10.43484189]
[1752090695431,252.06,157.13,157.02,10.43484189]
[1752090695736,10.43484189,157.12,156.98,62.0]
[1752090695929,6.3665,157.04,156.97,10.43484189]
[1752090696132,251.48,157.07,156.97,10.43484189]
[1752090696334,251.36,157.1,157.0,10.43484189]
[1752090696637,251.36,157.1,157.03,10.43484189]
[1752090696832,2.2622,157.14,157.06,10.43484189]
[1752090697232,2.2622,157.14,157.08,10.43484189]
[1752090697428,8.6244,157.14,157.08,10.43484189]
[1752090697635,2.2622,157.14,157.08,10.43484189]
[1752090697834,10.43484189,157.2,157.08,10.43484189]
[1752090698033,2.2639,157.19,157.11,10.43484189]
[1752090698937,2.2639,157.19,157.14,10.43484189]
[1752090699237,2.2092,157.22,157.14,10.43484189]
[1752090699636,2.2092,157.22,157.16,6.361]
[1752090699838,6.36,157.2,157.16,6.361]
[1752090700137,2.2092,157.22,157.16,6.361]
[1752090701038,2.2092,157.22,157.14,10.43484189]
[1752090701539,2.2092,157.22,157.16,6.3613]
[1752090701937,2.2092,157.22,157.14,10.43484189]
[1752090702638,6.3596,157.21,157.17,6.3606]
[1752090702936,2.2092,157.22,157.14,10.43484189]
[1752090703239,2.2092,157.22,157.16,10.43484189]
[1752090703536,2.2092,157.22,157.12,62.0]
[1752090703738,6.36,157.2,157.15,10.43484189]
[1752090703927,2.2092,157.22,157.15,10.43484189]
[1752090704131,2.2092,157.22,157.13,10.43484189]
[1752090704940,2.2092,157.22,157.16,10.43484189]
[1752090706141,2.2092,157.22,157.19,10.43484189]
[1752090706341,2.2092,157.22,157.09,12.95247]
[1752090706546,2.2092,157.22,157.18,10.43484189]
[1752090706940,2.2092,157.22,157.18,72.43484189]
[1752090707142,2.1911,157.25,157.18,62.0]
[1752090707551,2.1911,157.25,157.18,10.43484189]
[1752090707749,6.3587,157.23,157.2,6.3596]
[1752090708053,2.1911,157.25,157.18,10.43484189]
[1752090708253,6.3588,157.23,157.19,6.3598]
[1752090708452,249.6311,157.25,157.18,10.43484189]
[1752090708652,2.1911,157.25,157.18,10.43484189]
[1752090708850,6.3585,157.23,157.18,6.79484189]
[1752090709252,249.5111,157.25,157.18,6.79484189]
[1752090709453,249.5111,157.25,157.16,10.43484189]
[1752090709653,259.94594189,157.25,157.14,10.43484189]
[1752090709855,6.3609,157.18,157.14,6.3621]
[1752090710248,259.94594189,157.25,157.12,10.43484189]
[1752090710448,6.3609,157.17,157.12,10.43484189]
[1752090710650,6.3609,157.17,157.1,62.0]
[1752090710856,259.94594189,157.25,157.12,10.43484189]
[1752090711052,6.3606,157.18,157.14,6.3619]
[1752090711261,6.3606,157.18,157.1,62.0]
[1752090711262,2.1911,157.25,157.15,10.43484189]
[1752090711453,2.1911,157.25,157.19,10.43484189]
[1752090712757,549.86,157.26,157.19,10.43484189]
[1752090713059,549.86,157.26,157.23,6.3582]
[1752090713258,549.86,157.26,157.11,8.48122608]
[1752090713458,549.86,157.26,157.21,10.43484189]
[1752090713958,2.2729,157.29,157.21,10.43484189]
[1752090714166,248.2929,157.29,157.23,6.3585]
[1752090714652,6.3574,157.26,157.12,12.7252]
[1752090714854,2.2729,157.29,157.21,10.43484189]
[1752090715155,6.3566,157.28,157.24,6.3578]
[1752090715350,248.1839,157.3,157.24,6.3578]
[1752090715548,248.1839,157.3,157.21,10.43484189]
[1752090715749,6.3571,157.27,157.23,6.3585]
[1752090716154,245.32,157.29,157.2,10.43484189]
[1752090716353,245.32,157.29,157.13,62.0]
[1752090716354,6.3587,157.23,157.19,6.3598]
[1752090716555,245.32,157.29,157.13,62.0]
[1752090716753,10.43484189,157.27,157.17,6.3607]
[1752090716956,245.32,157.29,157.17,6.3607]
[1752090717154,10.43484189,157.27,157.14,10.43484189]
[1752090717351,245.32,157.29,157.14,10.43484189]
[1752090717554,10.43484189,157.28,157.17,10.43484189]
[1752090717750,6.3592,157.22,157.18,6.3604]
[1752090718060,244.78,157.27,157.18,6.3604]
[1752090718361,244.78,157.27,157.17,16.79574189]
[1752090718752,244.78,157.27,157.17,10.43484189]
[1752090718953,244.78,157.27,157.17,16.79574189]
[1752090719360,6.3597,157.2,157.17,16.79574189]
[1752090719754,244.78,157.27,157.17,16.79574189]
[1752090719962,6.3596,157.21,157.17,16.79574189]
[1752090720260,244.74,157.25,157.17,16.79574189]
[1752090720559,6.3599,157.2,157.16,6.3612]
[1752090720754,2.317,157.24,157.15,10.43484189]
[1752090721059,2.317,157.24,157.14,10.43484189]
[1752090721260,10.43484189,157.22,157.1,3.69535703]
[1752090721456,2.2038,157.23,157.1,3.69535703]
[1752090721653,10.43484189,157.21,157.1,3.69535703]
[1752090721852,10.43484189,157.21,157.11,10.43484189]
[1752090722052,12.7181,157.22,157.1,3.69535703]
[1752090722256,2.2038,157.23,157.12,10.43484189]
[1752090722560,6.3616,157.16,157.12,10.43484189]
[1752090722762,6.3616,157.16,157.13,6.3625]
[1752090722962,10.43484189,157.21,157.1,14.13019892]
[1752090723156,10.43484189,157.21,157.12,6.3626]
[1752090723356,10.43484189,157.21,157.1,14.13019892]
[1752090723756,243.98,157.2,157.1,14.13019892]
[1752090723952,243.98,157.2,157.1,3.69535703]
[1752090724160,2.2038,157.23,157.13,10.43484189]
[1752090724358,2.2038,157.23,157.16,10.43484189]
[1752090724560,6.3594,157.21,157.16,10.43484189]
[1752090724962,2.2038,157.23,157.13,10.43484189]
[1752090725154,6.36,157.2,157.13,10.43484189]
[1752090725355,2.2038,157.23,157.1,65.69535703]
[1752090725561,10.43484189,157.22,157.11,10.43484189]
[1752090725860,2.2038,157.23,157.15,6.3616]
[1752090726060,2.2038,157.23,157.11,10.43484189]
[1752090726258,10.43484189,157.22,157.1,65.69535703]
[1752090726461,10.43484189,157.22,157.1,3.69535703]
[1752090726662,6.3613,157.17,157.1,3.69535703]
[1752090726969,2.2038,157.23,157.13,6.3623]
[1752090726970,245.46,157.19,157.13,6.3623]
[1752090727261,6.3609,157.17,157.1,3.69535703]
[1752090727467,245.46,157.19,157.13,6.3622]
[1752090727761,245.46,157.19,157.1,3.69535703]
[1752090727966,245.46,157.19,157.13,6.3622]
[1752090728471,245.46,157.19,157.1,14.13019892]
[1752090728861,2.2038,157.23,157.13,10.43484189]
[1752090729365,6.3596,157.21,157.16,6.3609]
[1752090729757,2.2038,157.23,157.17,6.3608]
[1752090729962,2.2038,157.23,157.15,10.43484189]
[1752090730566,2.2038,157.23,157.18,6.3605]
[1752090730962,2.2038,157.23,157.13,62.0]
[1752090731162,10.43484189,157.19,157.1,3.69535703]
[1752090731371,245.32,157.18,157.1,3.69535703]
[1752090731664,2.2038,157.23,157.1,3.69535703]
[1752090731866,2.2038,157.23,157.14,10.43484189]
[1752090732063,6.3607,157.18,157.13,6.3624]
[1752090732261,2.2038,157.23,157.1,3.69535703]
[1752090732462,249.66,157.19,157.1,3.69535703]
[1752090732663,249.66,157.19,157.1,14.11426268]
[1752090732863,249.66,157.19,157.1,3.69535703]
[1752090733062,249.66,157.19,157.11,10.41890565]
[1752090734265,6.361,157.17,157.13,6.3622]
[1752090734461,249.66,157.19,157.1,65.69535703]
[1752090734764,2.1637,157.16,157.1,9.81563694]
[1752090735571,2.1637,157.16,157.13,6.3622]
[1752090735758,2.1637,157.16,157.1,3.69535703]
[1752090735964,2.1637,157.16,157.12,6.12027991]
[1752090736164,557.81727991,157.24,157.14,6.12027991]
[1752090736373,251.3781,157.23,157.16,6.12027991]
[1752090736566,6.3597,157.21,157.17,6.3608]
[1752090736866,2.1781,157.23,157.19,6.12027991]
[1752090737071,6.3592,157.22,157.18,12.48037991]
[1752090737269,2.1781,157.23,157.18,6.12027991]
[1752090737465,551.697,157.24,157.2,6.12027991]
[1752090737672,551.697,157.24,157.21,6.3591]
[1752090738064,551.697,157.24,157.2,6.12027991]
[1752090738269,2.317,157.24,157.23,6.3585]
[1752090738471,2.1781,157.27,157.22,6.12027991]
[1752090738674,11.08258942,157.3,157.24,6.12027991]
[1752090738975,11.08258942,157.3,157.15,62.0]
[1752090738976,2.2202,157.3,157.26,6.12027991]
[1752090739169,2.2202,157.3,157.29,6.3561]
[1752090739374,8.86238942,157.34,157.23,6.12027991]
[1752090739579,549.42,157.4,157.23,6.12027991]
[1752090739580,8.86238942,157.35,157.23,6.12027991]
[1752090739874,15.21598942,157.35,157.31,6.12027991]
[1752090740074,4.5162,157.36,157.17,562.1417]
[1752090740266,4.5162,157.36,157.26,6.12027991]
[1752090740577,10.63647991,157.36,157.26,6.12027991]
[1752090740868,19.26308061,157.35,157.17,549.42]
[1752090741073,4.5162,157.36,157.24,10.40069119]
[1752090741268,4.5162,157.36,157.27,10.40069119]
[1752090741472,250.16,157.35,157.27,10.40069119]
[1752090741672,6.3541,157.34,157.29,6.356]
[1752090741872,250.08,157.35,157.2,0.0684]
[1752090742071,250.08,157.35,157.25,10.40069119]
[1752090742275,250.08,157.35,157.24,10.40069119]
[1752090742477,250.08,157.35,157.17,549.42]
[1752090742478,10.40069119,157.34,157.17,549.42]
[1752090742667,250.08,157.35,157.23,6.3582]
[1752090742872,10.40069119,157.34,157.23,6.3582]
[1752090743074,250.08,157.35,157.24,10.40069119]
[1752090743379,6.3564,157.29,157.22,10.40069119]
[1752090743878,6.3557,157.3,157.25,6.3577]
[1752090744080,10.40069119,157.34,157.22,10.40069119]
[1752090744682,4.5162,157.36,157.25,10.40069119]
[1752090745076,254.5162,157.36,157.25,10.40069119]
[1752090745378,254.5162,157.36,157.19,10.40069119]
[1752090745379,6.3541,157.34,157.29,6.3558]
[1752090745579,254.3562,157.36,157.27,10.40069119]
[1752090745975,6.354,157.35,157.3,6.3554]
[1752090746172,254.3562,157.36,157.21,0.0665]
[1752090746378,4.5162,157.36,157.29,10.40069119]
[1752090746880,4.5162,157.36,157.21,0.0665]
[1752090746881,4.5162,157.36,157.28,10.40069119]
[1752090747180,4.5162,157.36,157.31,6.3549]
[1752090747380,4.5162,157.36,157.28,10.40069119]
[1752090748072,4.5162,157.36,157.21,0.0665]
[1752090748380,4.5162,157.36,157.29,10.40069119]
[1752090748580,6.3539,157.35,157.31,6.3552]
[1752090748779,4.5162,157.36,157.26,10.40069119]
[1752090749776,4.5162,157.36,157.24,10.40069119]
[1752090749976,14.91689119,157.36,157.24,10.40069119]
[1752090750177,4.5162,157.36,157.24,10.40069119]
[1752090750474,4.5162,157.36,157.25,10.40069119]
[1752090750673,6.3548,157.33,157.25,10.40069119]
[1752090750871,4.5162,157.36,157.28,10.40069119]
[1752090751283,4.5162,157.36,157.31,10.40069119]
[1752090751976,4.5162,157.36,157.3,10.40069119]
[1752090752187,248.2,157.41,157.3,10.40069119]
[1752090752479,263.10069119,157.41,157.28,10.40069119]
[1752090752685,10.40069119,157.38,157.19,10.40069119]
[1752090752884,4.5,157.41,157.29,10.40069119]
[1752090753077,248.44,157.4,157.29,10.40069119]
[1752090753483,6.3544,157.34,157.3,6.3556]
[1752090753780,248.44,157.4,157.29,10.40069119]
[1752090754078,248.22,157.4,157.29,10.40069119]
[1752090754485,248.22,157.4,157.31,6.3552]
[1752090754678,248.22,157.4,157.29,10.40069119]
[1752090755084,248.22,157.4,157.32,6.3545]
[1752090755383,254.58,157.4,157.16,8.5470357]
[1752090755572,10.4068389,157.3,157.19,10.4068389]
[1752090755774,4.6596,157.29,157.22,10.40295518]
[1752090756072,6.3566,157.28,157.23,10.40094172]
[1752090756277,4.6596,157.29,157.26,10.40094172]
[1752090756478,4.6596,157.29,157.19,10.40094172]
[1752090756786,549.06,157.32,157.27,10.40094172]
[1752090756972,2.3494,157.34,157.27,10.40094172]
[1752090757178,2.3494,157.34,157.2,0.0694]
[1752090757179,2.3494,157.34,157.29,10.40094172]
[1752090757483,549.06,157.4,157.2,0.0694]
[1752090757484,248.58,157.38,157.2,0.0694]
[1752090757684,6.3543,157.34,157.29,6.3558]
[1752090757982,4.6369,157.39,157.28,10.40094172]
[1752090758284,10.40094172,157.38,157.2,0.0694]
[1752090758481,254.5169,157.39,157.28,10.40094172]
[1752090758678,6.3531,157.37,157.33,6.3541]
[1752090758979,6.3531,157.37,157.31,10.40094172]
[1752090758980,4.6369,157.39,157.3,10.40094172]
[1752090759183,6.3535,157.36,157.31,6.355]
[1752090759377,6.3535,157.36,157.3,10.40094172]
[1752090759773,4.6369,157.39,157.3,10.40094172]
[1752090760281,4.6369,157.39,157.28,10.40094172]
[1752090760980,4.6369,157.39,157.31,10.40094172]
[1752090761373,6.3529,157.37,157.33,6.3542]
[1752090761573,4.6369,157.39,157.31,10.40094172]
[1752090761785,6.3527,157.38,157.34,6.354]
[1752090761977,4.6369,157.39,157.31,10.40094172]
[1752090762180,4.6369,157.39,157.24,549.02]
[1752090762381,6.3527,157.38,157.34,6.3538]
[1752090762687,4.6369,157.39,157.33,10.40094172]
[1752090762882,6.3526,157.38,157.35,6.3533]
[1752090763082,4.6369,157.39,157.35,6.3533]
[1752090763283,4.6369,157.39,157.33,10.40094172]
[1752090763579,6.3529,157.37,157.31,10.40094172]
[1752090763792,2.2875,157.39,157.31,10.40094172]
[1752090763984,2.2875,157.39,157.24,549.02]
[1752090764380,6.3525,157.38,157.34,6.354]
[1752090764988,2.2875,157.39,157.32,10.40094172]
[1752090765484,6.3521,157.39,157.35,6.3533]
[1752090765679,549.06,157.4,157.24,549.02]
[1752090765985,6.3524,157.39,157.31,10.40094172]
[1752090766187,549.06,157.4,157.31,10.40094172]
[1752090766380,549.06,157.4,157.24,549.02]
[1752090766682,549.06,157.4,157.32,10.40094172]
[1752090766880,549.06,157.4,157.29,10.40094172]
[1752090767484,549.06,157.4,157.32,10.40094172]
[1752090767687,6.3528,157.38,157.34,6.354]
[1752090767886,549.06,157.4,157.32,10.40094172]
[1752090768188,6.3521,157.39,157.36,6.3532]
[1752090768487,6.3521,157.39,157.32,10.40094172]
[1752090768687,6.3525,157.38,157.34,6.354]
[1752090768885,549.06,157.4,157.34,6.354]
[1752090769188,6.3531,157.37,157.33,6.3544]
[1752090769383,549.06,157.4,157.33,6.10313971]
[1752090769685,802.86,157.4,157.33,6.10313971]
[1752090769886,802.86,157.4,157.31,6.10313971]
[1752090770587,802.78,157.4,157.25,62.0]
[1752090770782,549.06,157.4,157.34,6.10313971]
[1752090771086,549.06,157.4,157.25,74.7154]
[1752090771387,6.3523,157.39,157.35,6.3534]
[1752090771587,549.06,157.4,157.34,6.10313971]
[1752090771886,549.06,157.4,157.37,6.3528]
[1752090772089,2.1777,157.41,157.37,6.3528]
[1752090772289,2.1777,157.41,157.34,6.10313971]
[1752090772588,8.529,157.41,157.34,6.10313971]
[1752090772885,2.1777,157.41,157.39,6.3519]
[1752090773284,2.1777,157.41,157.36,6.10313971]
[1752090773884,2.1777,157.41,157.39,6.3518]
[1752090774083,2.1777,157.41,157.36,6.10313971]
[1752090774488,2.1777,157.41,157.39,6.3518]
[1752090775184,2.1777,157.41,157.38,6.10313971]
[1752090775488,2.1777,157.41,157.4,6.3516]
[1752090775688,2.1895,157.42,157.4,6.10313971]
[1752090775890,2.1895,157.42,157.39,6.10313971]
[1752090776386,2.1895,157.42,157.32,6.10313971]
[1752090776593,2.1639,157.46,157.4,6.10313971]
[1752090776782,253.9839,157.46,157.4,6.10313971]
[1752090777087,6.3503,157.44,157.4,12.45453971]
[1752090777291,2.1639,157.46,157.41,6.10313971]
[1752090777586,6.3504,157.44,157.41,6.10313971]
[1752090777785,2.1639,157.46,157.41,6.10313971]
[1752090778186,2.1639,157.46,157.32,6.10313971]
[1752090778487,2.1639,157.46,157.4,6.10313971]
[1752090779189,6.3497,157.45,157.4,6.10313971]
[1752090779382,2.1639,157.46,157.33,62.0]
[1752090779690,6.3515,157.41,157.37,6.3525]
[1752090779989,6.10313971,157.45,157.36,6.10313971]
[1752090780188,6.10313971,157.45,157.37,6.10313971]
[1752090780684,6.3523,157.39,157.35,6.3534]
[1752090780880,250.08,157.41,157.34,6.10313971]
[1752090781289,6.3523,157.39,157.35,6.3534]
[1752090781491,2.2286,157.4,157.35,6.3534]
[1752090781684,6.3525,157.38,157.34,12.45703971]
[1752090781987,2.2286,157.4,157.34,6.10313971]
[1752090782290,2.2286,157.4,157.34,12.45693971]
[1752090782491,2.2286,157.4,157.34,6.10313971]
[1752090783289,2.2286,157.4,157.36,6.353]
[1752090783687,2.2286,157.4,157.34,6.10313971]
[1752090783884,249.52,157.43,157.38,6.3524]
[1752090784298,249.52,157.43,157.34,6.10313971]
[1752090784490,8.34823971,157.45,157.34,6.10313971]
[1752090784793,2.2451,157.45,157.38,6.10313971]
[1752090784989,6.3501,157.44,157.38,6.10313971]
[1752090785492,8.5948,157.45,157.41,6.3511]
[1752090785691,2.1639,157.46,157.42,6.10313971]
[1752090785886,2.2451,157.52,157.45,6.3496]
[1752090786087,248.8,157.51,157.42,6.10313971]
[1752090786299,254.90313971,157.51,157.41,6.10313971]
[1752090786489,4.483,157.52,157.43,6.10313971]
[1752090786691,2.2379,157.52,157.47,6.10313971]
[1752090786995,8.81102357,157.6,157.51,6.08667059]
[1752090787290,8.81102357,157.6,157.49,6.08667059]
[1752090787291,8.81102357,157.58,157.49,6.08667059]
[1752090787488,8.81102357,157.58,157.45,548.74]
[1752090787489,260.08892357,157.6,157.51,6.08667059]
[1752090787996,6.08667059,157.59,157.5,12.43387059]
[1752090788193,11.04892357,157.6,157.45,548.74]
[1752090788397,254.62667059,157.59,157.5,6.08667059]
[1752090788593,6.3471,157.52,157.47,6.08667059]
[1752090788797,6.08667059,157.57,157.48,62.0]
[1752090789095,6.08667059,157.57,157.48,68.3481]
[1752090789295,6.08667059,157.58,157.48,62.0]
[1752090789688,6.3467,157.53,157.48,62.0]
[1752090789893,254.62667059,157.59,157.48,62.0]
[1752090790089,2.2934,157.52,157.45,12.43607059]
[1752090790290,8.38007059,157.52,157.42,6.08667059]
[1752090790495,2.1544,157.51,157.42,6.08667059]
[1752090790692,2.1544,157.51,157.44,6.08667059]
[1752090791193,2.1544,157.51,157.45,6.3494]
[1752090791399,2.1544,157.51,157.44,6.08667059]
[1752090792103,6.3483,157.49,157.45,6.3495]
[1752090792396,2.1544,157.51,157.44,6.08667059]
[1752090792795,2.1544,157.51,157.37,548.68]
[1752090793102,2.1544,157.51,157.38,62.0]
[1752090793298,2.2934,157.52,157.47,10.37631055]
[1752090793495,2.1993,157.58,157.47,10.37631055]
[1752090793695,4.481,157.58,157.48,10.37631055]
[1752090793891,4.481,157.58,157.38,12.7046]
[1752090793892,14.85731055,157.58,157.46,10.37631055]
[1752090794095,10.37112561,157.57,157.37,567.79]
[1752090794294,10.37112561,157.57,157.37,548.68]
[1752090794500,0.04754667,157.49,157.42,10.37112561]
[1752090794699,0.04754667,157.49,157.48,6.3484]
[1752090795096,506.206,157.54,157.49,6.3479]
[1752090795300,499.86,157.54,157.49,6.3479]
[1752090795501,0.04707503,157.5,157.46,10.3745235]
[1752090795701,0.04707503,157.5,157.37,561.3853]
[1752090795898,0.04707503,157.5,157.41,10.3745235]
[1752090796099,499.86,157.54,157.41,10.3745235]
[1752090796293,6.3477,157.5,157.41,10.3745235]
[1752090796798,4.481,157.58,157.42,62.0]
[1752090797002,256.561,157.58,157.42,62.0]
[1752090797202,4.481,157.58,157.46,10.3745235]
[1752090797396,262.5545235,157.57,157.46,10.3745235]
[1752090797806,6.3465,157.53,157.48,6.3481]
[1752090798002,262.5545235,157.57,157.46,10.3745235]
[1752090798204,10.3745235,157.54,157.42,62.0]
[1752090798400,6.3481,157.49,157.44,6.3497]
[1752090798607,10.3745235,157.51,157.39,10.3745235]
[1752090798806,6.3505,157.43,157.38,6.3521]
[1752090799005,10.3745235,157.45,157.31,0.0697]
[1752090799205,10.3745235,157.45,157.34,10.3745235]
[1752090799901,0.04166642,157.41,157.34,10.3745235]
[1752090801309,0.04166642,157.41,157.35,62.0]
[1752090802597,0.04166642,157.41,157.35,72.3745235]
[1752090802801,0.04166642,157.41,157.35,10.3745235]
[1752090803001,0.04166642,157.41,157.37,6.3526]
[1752090803206,0.04166642,157.41,157.34,10.3745235]
[1752090803408,0.04166642,157.41,157.32,10.3745235]
[1752090803607,2.1356,157.48,157.32,10.3745235]
[1752090803808,0.04159166,157.38,157.32,10.3745235]
[1752090804204,2.3434,157.43,157.32,10.3745235]
[1752090804402,0.04824575,157.37,157.3,3.69535703]
[1752090804705,2.3434,157.43,157.39,0.20389425]
[1752090805613,6.3509,157.42,157.39,0.20389425]
[1752090806114,6.3512,157.42,157.39,0.20389425]
[1752090806314,2.3434,157.43,157.39,0.20389425]
[1752090806615,6.3511,157.42,157.39,0.20389425]
[1752090806815,2.3434,157.43,157.39,0.20389425]
[1752090807015,10.3745235,157.47,157.39,0.20389425]
[1752090807215,6.3501,157.44,157.39,0.20389425]
[1752090807417,2.1674,157.46,157.41,6.351]
[1752090807815,6.3497,157.45,157.39,0.20389425]
[1752090808908,2.1674,157.46,157.39,0.20389425]
[1752090809311,2.1356,157.48,157.39,62.20389425]
[1752090809627,11.05152357,157.53,157.46,10.3745235]
[1752090809913,4.5746,157.53,157.46,10.3745235]
[1752090810113,10.921,157.53,157.46,10.3745235]
[1752090810614,2.3341,157.53,157.46,10.3745235]
[1752090811208,8.81102357,157.58,157.49,10.3745235]
[1752090811718,6.3449,157.57,157.49,10.3745235]
[1752090812018,8.81102357,157.57,157.48,10.3745235]
[1752090812214,12.7086235,157.59,157.4,0.0706]
[1752090812416,12.7086235,157.59,157.46,10.3745235]
[1752090812908,6.09220211,157.56,157.48,6.3481]
[1752090813108,6.09220211,157.56,157.47,6.09220211]
[1752090813109,6.09220211,157.57,157.47,6.09220211]
[1752090813418,6.09220211,157.57,157.5,6.3476]
[1752090813617,6.09220211,157.57,157.41,6.09220211]
[1752090813816,6.3472,157.51,157.47,12.44060211]
[1752090814018,6.09220211,157.55,157.45,6.09220211]
[1752090814215,8.42630211,157.59,157.45,6.09220211]
[1752090814416,6.09220211,157.54,157.46,6.3491]
[1752090814618,497.1054,157.53,157.45,6.09220211]
[1752090814820,497.1054,157.53,157.42,62.0]
[1752090815017,497.1054,157.53,157.46,6.09220211]
[1752090815615,503.4522,157.53,157.48,6.3483]
[1752090815815,497.1054,157.53,157.48,6.09220211]
[1752090816118,494.74,157.53,157.48,6.09220211]
[1752090816917,494.74,157.53,157.5,6.09220211]
[1752090817114,495.7254,157.58,157.5,6.09220211]
[1752090817314,495.7254,157.58,157.42,62.0]
[1752090817521,495.7254,157.58,157.53,6.09220211]
[1752090817723,2.3341,157.59,157.52,6.09220211]
[1752090818523,2.3103,157.61,157.5,6.09220211]
[1752090818827,2.2529,157.66,157.51,0.0711]
[1752090819117,500.79220211,157.65,157.54,6.09220211]
[1752090819320,494.7,157.65,157.58,6.09220211]
[1752090819516,494.7,157.65,157.51,0.0711]
[1752090819824,494.7,157.65,157.46,12.698]
[1752090819825,6.09220211,157.62,157.53,6.09220211]
[1752090820022,2.3103,157.61,157.46,0.0711]
[1752090820326,6.09220211,157.58,157.46,0.0711]
[1752090820514,498.4729,157.57,157.48,6.09220211]
[1752090820712,504.56510211,157.57,157.49,3.52498341]
[1752090820912,6.3457,157.55,157.5,9.87258341]
[1752090821116,504.56510211,157.57,157.51,3.52498341]
[1752090821418,504.56510211,157.57,157.52,3.52498341]
[1752090821618,504.56510211,157.57,157.53,3.52498341]
[1752090821820,504.56510211,157.57,157.48,6.09220211]
[1752090822020,6.09220211,157.55,157.45,6.09220211]
[1752090822222,2.2468,157.54,157.45,6.09220211]
[1752090822818,6.09220211,157.53,157.43,6.09220211]
[1752090823018,6.09220211,157.51,157.41,6.16330211]
[1752090823218,2.2468,157.54,157.41,6.16330211]
[1752090823219,6.3487,157.48,157.41,6.16330211]
[1752090823721,494.96,157.5,157.41,6.16330211]
[1752090824024,494.96,157.5,157.41,0.0711]
[1752090824219,494.96,157.5,157.44,6.09220211]
[1752090824526,2.2468,157.54,157.46,6.09220211]
[1752090824719,6.3471,157.52,157.47,6.3485]